Cogmind - Beta 16 @@@ ROGUE MODE // 2026.01.26 @ 23:35:49 Player: Bikerider58 Result: Destroyed by LW-IXX(R) with Subdweller Beam Cannon Performance ------------- Evolutions (0) 0 Regions Visited (1) 200 Robots Destroyed (19) 95 Value Destroyed (379) 379 Prototype IDs (0) 0 Alien Tech Used (0) 0 Bonus (0) 0 TOTAL SCORE: 674 Bonus ------- None Cogmind --------- Core Integrity 0/250 Matter 289/300 Energy 100/100 System Corruption 3% Temperature Cool (9) Movement Treading (320) Ox2 Location -10/Materials Parts ------- > --- POWER (1) -------- (None) > --- PROPULSION (2) --- Light Treads > --- UTILITY (2) ------ High-capacity Storage Unit Seismic Detector > --- WEAPON (2) ------- Small Laser > --- INVENTORY (20) --- Aluminum Leg Compact Wheel Heat Sink Small Storage Unit Small Storage Unit Large Storage Unit Improved Terrain Scanner ECM Suite Core Shielding Small Laser Grenade Launcher Mining Laser Peak State ------------ > --- POWER ------------ Light Nuclear Core > --- PROPULSION ------- Light Treads Light Treads > --- UTILITY ---------- Large Storage Unit Seismic Detector > --- WEAPON ----------- Medium Laser Light Assault Rifle > --- INVENTORY -------- Light Treads Aluminum Leg Compact Wheel Heat Sink Small Storage Unit Small Storage Unit Improved Terrain Scanner Small Laser Small Laser Grenade Launcher Mining Laser [Rating: 10] Favorites ----------- Power Light Ion Engine Engine Light Ion Engine Power Core Light Nuclear Core Propulsion Light Treads Treads Light Treads Utility Seismic Detector Device Seismic Detector Storage Large Storage Unit Weapon Medium Laser Energy Gun Medium Laser Ballistic Gun Light Assault Rifle Special Weapon Mining Laser Build | -11 -10 ------- Run | Yrd Mat Slots Evolved . | . . Power . | . . Propulsion . | . . Utility . | . . Weapon . | . . Parts Attached 15 | 7 8 Power 3 | 1 2 Engine 2 | 1 1 Core 1 | . 1 Reactor . | . . Propulsion 3 | 2 1 Treads 3 | 2 1 Leg . | . . Wheel . | . . Hover . | . . Flight . | . . Utility 5 | 2 3 Device 2 | 1 1 Storage 3 | 1 2 Processor . | . . Hackware . | . . Protection . | . . Artifact . | . . Weapon 4 | 2 2 Energy Gun 2 | 1 1 Energy Cannon . | . . Ballistic Gun 1 | 1 . Ballistic Cannon . | . . Launcher . | . . Special Weapon 1 | . 1 Impact Weapon . | . . Slashing Weapon . | . . Piercing Weapon . | . . Special Melee Weapon . | . . Unidentified Prototypes . | . . Parts Lost 6 | . 6 Power 2 | . 2 Propulsion 2 | . 2 Utility . | . . Weapon 2 | . 2 Highest Loss Streak 5 | . 5 To Critical Strikes . | . . Average Backups 8 | . 9 Power . | . . Propulsion 1 | . 1 Utility 3 | . 4 Weapon 2 | . 2 Tool/Special . | . . Unused Backups 8 | . 8 Power . | . . Propulsion 2 | . 2 Utility 4 | . 4 Weapon 2 | . 2 Tool/Special . | . . Average Slot Usage (%) 98 | . 98 Engine 7 | . 7 Core 5 | . 5 Treads 27 | . 27 Device 14 | . 14 Storage 14 | . 14 Energy Gun 14 | . 14 Ballistic Gun 13 | . 13 Peak Build Rating 10 | 7 10 Average Rating 8 | 5 8 On Entrance 3 | . 7 Avg Prop Armor Cover (%) . | . . Naked Turns . | . . Heaviest Build 49 | 12 49 Greatest Support 40 | 40 40 Greatest Overweight (x) 2 | . 2 Average Overweight (x) . | . . Largest Inventory Capacity 20 | 8 20 Average Capacity 15 | 7 16 Most Carried 14 | 2 14 Average Carried 8 | . 9 Final Capacity 20 | 8 20 Final Carried 12 | 2 12 Class Distribution -------------------- 100% | Mutant Dominant Class ---------------- Mutant | -10/Materials Resources | -11 -10 ----------- Run | Yrd Mat Matter Collected 425 | 281 144 Remotely . | . . Salvage Created 774 | 121 653 Parts 31 | 6 25 Haulers Intercepted 1 | . 1 Recyclers Shooed 3 | 1 2 Parts Field Recycled . | . . Retrieved Matter . | . . Parts Self-Destructed . | . . Prevented . | . . Parts Restored . | . . Kills | -11 -10 ------- Run | Yrd Mat Combat Hostiles Destroyed 11 | . 11 Guns 11 | . 11 Classes Destroyed 7 | 2 5 Worker 1 | . 1 Tunneler 2 | 2 . Hauler 1 | . 1 Recycler 3 | 1 2 Operator 1 | . 1 Swarmer 3 | . 3 Grunt 8 | . 8 Best Kill Streak 3 | 2 3 Combat Bots Only 3 | . 3 Max Kills in Single Turn 1 | 1 1 Gunslinging . | . . Exploded . | . . Melee . | . . Uniques/NPCs Destroyed . | . . Combat | -11 -10 -------- Run | Yrd Mat Hostile Shots Fired 73 | . 73 Missed 16 | . 16 Hits 57 | . 57 Projectile 57 | . 57 AOE 5 | . 5 Critical Strikes 1 | . 1 Damage Taken 960 | . 960 Core 273 | . 273 Absorbed by Shields . | . . Core Remaining (%) 100 | 100 . Volleys Fired 78 | 11 67 Largest 2 | 2 2 Hottest 100 | 70 100 Shots Fired 151 | 22 129 Gun 148 | 22 126 Cannon . | . . Launcher . | . . Special 3 | . 3 Kinetic 75 | 11 64 Thermal 76 | 11 65 Explosive . | . . Electromagnetic . | . . Robot Hit Streak 8 | 5 8 Robot Miss Streak 5 | 5 3 Penetration Max . | . . Secondary Targets 2 | . 2 Max Gunslinging Chain 1 | . 1 Shots Hit Robots 97 | 11 86 Core Hits 37 | 5 32 Critical Kills . | . . Critical Parts Destroyed . | . . Critical Strikes 5 | 2 3 Burn 5 | 2 3 Melee Attacks . | . . Impact . | . . Slashing . | . . Piercing . | . . Sneak Attacks . | . . Combat Hostiles . | . . Follow-up Attacks . | . . Damage Inflicted 1018 | 103 915 Guns 1018 | 103 915 Cannons . | . . Explosions . | . . Melee . | . . Ramming . | . . Kinetic 466 | 52 414 Thermal 552 | 51 501 Explosive . | . . Electromagnetic . | . . Impact . | . . Slashing . | . . Piercing . | . . Highest Corruption 3 | . 3 Average Corruption 2 | . 2 Corruption Purged . | . . Corruption Blocked . | . . Effects 10 | . 10 Matter Fused 2 | . 2 Heat Flow Errors 1 | . 1 Energy Discharges 2 | . 2 Parts Fused 1 | . 1 Data Loss (minor) 1 | . 1 Data Loss (major) 1 | . 1 Alerts 2 | . 2 Overload Shots . | . . Overflow Damage . | . . Projectiles . | . . Explosions . | . . Melee . | . . Knockbacks . | . . Impact . | . . Kinetic . | . . Secondary . | . . Self-Inflicted Damage . | . . Shots . | . . Rammed . | . . Targets Rammed . | . . Kicked . | . . Crushed . | . . Highest Temperature 242 | 100 242 Average Temperature 63 | 41 67 Received Heat Transfer 285 | . 285 Siege Activations . | . . Martial Activations . | . . Shielding Activations . | . . Robots Disrupted . | . . Combat Hostiles . | . . Robots Corrupted . | . . Combat Hostiles . | . . Parts Fried . | . . Impact Corruptions . | . . Robots Melted . | . . Combat Hostiles . | . . Parts Melted 4 | 1 3 Heat Transferred 1998 | 296 1702 Parts Sabotaged . | . . Parts Stolen . | . . Parts Stripped . | . . Power Chain Reactions . | . . Alert | -11 -10 ------- Run | Yrd Mat Maximum Alert Level . | . . Low Security (%) 100 | 100 100 Level 1 . | . . Level 2 . | . . Level 3 . | . . Level 4 . | . . Level 5 . | . . High Security . | . . Max Security . | . . Peak Influence 82 | 5 82 Initial . | . . Average 28 | 1 31 Influence Increases 385 | 15 370 Destroy 0b10 Robot/C 220 | . 220 Destroy 0b10 Robot/NC 40 | 15 25 Destroy Leader 42 | . 42 Successful Hack 33 | . 33 Destroy Structure 5 | . 5 Lose Combat Pursuer 45 | . 45 Influence Decreases 385 | 15 370 Time Decay 331 | 15 316 Lost Part 10 | . 10 Purge Threat 44 | . 44 Squads Dispatched 1 | . 1 Investigation . | . . Extermination . | . . Reinforcement 1 | . 1 Assault . | . . Garrison . | . . Intercept . | . . Searches Triggered . | . . Construction Impeded . | . . Haulers Reinforced . | . . Active Scanning Responses . | . . Cargo Convoy Interrupts . | . . Stealth | -11 -10 --------- Run | Yrd Mat Distress Signals 1 | . 1 Communications Jammed . | . . Distress Signals . | . . Times Spotted 26 | . 26 Peak Tracking Total 5 | . 5 Tactical Retreats 3 | . 3 Traps | -11 -10 ------- Run | Yrd Mat Traps Triggered 2 | . 2 Indirectly . | . . Trap Hack Attempts . | . . Triggered . | . . Disarmed . | . . Reprogrammed . | . . Reused . | . . Traps Extracted . | . . Installed . | . . Triggered . | . . Machines | -11 -10 ---------- Run | Yrd Mat Machines Disabled . | . . Max in Single Turn . | . . Machines Repaired . | . . Machines Dismantled . | . . Machines Sabotaged . | . . Overloaded Fab Kills . | . . Hacking | -11 -10 --------- Run | Yrd Mat Machines Accessed 4 | . 4 Terminals 4 | . 4 Fabricators . | . . Repair Stations . | . . Recycling Units . | . . Scanalyzers . | . . Garrison Access . | . . Total Hacks 19 | . 19 Successful 9 | . 9 Failed 10 | . 10 Catastrophic 2 | . 2 Database Lockouts . | . . Manual 15 | . 15 Terminals 19 | . 19 Fabricators . | . . Repair Stations . | . . Recycling Units . | . . Scanalyzers . | . . Garrison Access . | . . Terminal Hacks 4 | . 4 Part Schematic 1 | . 1 Unreport Threat 2 | . 2 Hauler Manifests 1 | . 1 Fabricator Hacks . | . . Repair Station Hacks . | . . Recycling Unit Hacks . | . . Scanalyzer . | . . Garrison Access Hacks . | . . Unauthorized Hacks 5 | . 5 Terminals 5 | . 5 Operators 1 | . 1 Skim 4 | . 4 Fabricators . | . . Repair Stations . | . . Recycling Units . | . . Scanalyzers . | . . Garrison Access . | . . Data Cores Recovered . | . . Used . | . . Hacking Detections 4 | . 4 Full Trace Events . | . . Feedback Events . | . . Feedback Blocked . | . . Robot Schematics Acquired . | . . Robots Built . | . . Authchips . | . . Time . | . . Total Robot Build Rating . | . . Part Schematics Acquired 1 | . 1 Parts Built . | . . Authchips . | . . Time . | . . Total Part Build Rating . | . . Part Studies Acquired . | . . Parts Repaired . | . . Time . | . . Parts Recycled . | . . Recycled Matter . | . . Retrieved Matter . | . . Retrieved Components . | . . Parts Scanalyzed . | . . Part Schematics Acquired . | . . Parts Damaged . | . . Bothacking | -11 -10 ------------ Run | Yrd Mat Used RIF Installer . | . . Robots Hacked . | . . Non-combat . | . . Combat . | . . Robot Hacks Applied . | . . Relay Couplers Released . | . . Fabnet Peak Effective % . | . . Robots Rewired . | . . Allies Hacked . | . . Hacks Repelled . | . . Allies | -11 -10 -------- Run | Yrd Mat Total Allies . | . . Largest Group . | . . Highest-Rated Group . | . . Highest-Rated Ally . | . . Total Orders . | . . Ally Attacks . | . . Total Damage . | . . Kills . | . . Allies Corrupted . | . . Allies Melted . | . . Intel | -11 -10 ------- Run | Yrd Mat Active Infowar (turns) 961 | 18 943 Seismic 961 | 18 943 Robot Analysis Total . | . . Derelict Logs Recovered . | . . Drone Launches . | . . Drone Recoveries . | . . Exploration | -11 -10 ------------- Run | Yrd Mat Turns Passed 1097 | 113 984 Spaces Moved 425 | 44 381 Core 4 | 4 . Treads 421 | 40 381 Legs . | . . Wheels . | . . Hover . | . . Flight . | . . Fastest Speed 50 | 50 160 Average Speed 183 | 150 187 Slowest Speed 320 | 160 320 Overloaded Moves . | . . Propulsion Burnouts . | . . Robots Hopped . | . . Potential Cave-ins . | . . Cave-ins Triggered . | . . Exploration Rate (%) 36 | 3 70 Regions Visited 1 Branch Regions . Pre-discovered Areas . | . . Known Exits Taken . | . . Unknown Exits Taken 1 | 1 . Scrap Searched . | . . Spaces Dug 3 | . 3 Terrain Destroyed 3 | . 3 Melee . | . . Projectile 3 | . 3 AOE . | . . Terrain Rammed . | . . Walls Destroyed . | . . Machines Disabled . | . . Actions | -11 -10 --------- Run | Yrd Mat Total 596 | 68 528 Wait 63 | 5 58 Move 424 | 43 381 Hop . | . . Pick Up 13 | 2 11 Fast Attach 7 | 7 . Attach 3 | . 3 Detach . | . . Swap 7 | . 7 Drop 1 | . 1 Fire 78 | 11 67 Melee . | . . Ram . | . . Kick . | . . Crush . | . . Escape Stasis . | . . Rewire . | . . Trap . | . . Miscellaneous . | . . Route ------- -11/Scrapyard -10/Materials (discovered 3 exits: [*Mat x2] / [*Min]) History --------- Turn | Location | Event 7 | -11/Scrapyard | Discovered new exit (range 14) 114 | -11/Scrapyard | Entered Materials 304 | -10/Materials | Build established: Mutant 378 | -10/Materials | Discovered new exit (range 11) 693 | -10/Materials | Discovered new exit (range 15) 774 | -10/Materials | Discovered new exit (range 8) 1014 | -10/Materials | Derelicts attacked the area 1081 | -10/Materials | Core integrity fell below 50% 1090 | -10/Materials | Core integrity fell below 20% 1098 | -10/Materials | Destroyed by LW-IXX(R) with Subdweller Beam Cannon Last Messages --------------- area. 01014_ Acquired 4 matter. 01030_ O-16 Technician destroyed. 01037_ System corrupted: Heat flow error (+229). 01045_ Acquired 2 matter. 01047_ R-06 Scavenger collects Hover Unit. 01049_ Acquired 1 matter. 01051_ Com. Wheel melted. 01051_ R-06 Scavenger destroyed. 01052_ Acquired 1 matter. 01063_ Med. Laser destroyed. 01065_ Lgt. Treads destroyed. 01065_ Lgt. Assault Rifle destroyed. 01067_ System corrupted: Matter fused (-6). 01070_ Lgt. Nuclear Core destroyed. 01080_ Terminal disabled. 01080_ Nuclear Reactor explodes. 01089_ Recycling Unit disabled. 01090_ The unstable cave ceiling collapses. 01092_ System corrupted: Component data lost. Map ----- +----------------------------------------------------+ | ??######### #???? ###+####### | | ?# # #######+## ##### | | ?# + | | ?# # ! | | ?# /// # | | ?# /// ######+####### ########" | | ?# // #???# #?## #########"" # | | ?# #???# #??# #?# # | | ?# #???#""" #??# #?# +^ | | ?# #???#""" #??# #?# # | | ?##########???#""" #??# ### =# | | ??????????????# #??# " """"#####?# | | ????###########+######??# "#####""% | | ????# # #???????# = | | ????# # ######### !%! | | ????# # % ! [% | | ????# """%a% ##### R ""##"""" | | ????# " """ # #?????# | | ????# T """ # R " ##?????# | | ????# " # ###??????#### | | ????# # #???????????? | | ????########### #??########## | | ??????????????# #??# ! | | ??????????????# # ;;##??# | | ??????????????# ####???# """ """ | | ??????????????# @ #??????# """ """ | | ??????????????# ; ; #??????# """ """ | | ????????????? + r ###??????? | | ??????????? # # #????????? | | ???????????##?# u# [#????????# | | ????????????? ########???????########### | | ???????????? #??????????????# | | ??????????? ??????????????# = | | ?????????? ######??????????????# | | ?????????# ????????????????????# | | ?????????# ?????????????????????# | | ?????????# ??????????????????????#######+### | | ?????????????????????????????????????# # | | ?????????????????????????????????????# # | | ?????????????????????????????????????# # | | ?????????????????????????????????????# # | | ?????????????????????????????????????# # | | ?????????????????????????????????????## ## | | ??????????????????????????????????????# #? | | ??????????????????????????????????????# #? | | ??????????????????????????????????????# #? | | ??????????????????????????????????????# #? | | ??????????????????????????????????????# #? | | ??????????????????????????????????????# #? | | ??????????????????????????????????????# #? | +----------------------------------------------------+ Best States ------------- Heat Dissipation 35 Energy Generation 14 Energy Capacity 160 Matter Stores 300 Matter Capacity 300 Sight Range 16 Terrain Scan Density 10 Evasion (%) 40 Recoil Reduction 2 Item Schematics ----------------- Huge Storage Unit | -10/Materials | Hacked Robot Schematics ------------------ None Fabricated ------------ Nothing Repaired ---------- Nothing Studied --------- None Alien Tech Used ----------------- None Achievements -------------- None Challenges ------------ None Game ------ Seed PowerWeightProcessor Manual? 0 Play Time 00:07:34 Cumulative 236.8 hours Start 2026.01.26 @ 22:40:34 End 2026.01.26 @ 23:35:49 Sessions 2 Manual Loads 0 Difficulty Rogue Special Mode None Game No. 100 Rogue 95 Adventurer 5 Explorer 0 Win Type - Total 7 Types 3/0/2/1/0/0/0/0/0/1 Lore% 69 Gallery% 72 Achievement% 61 Wizard Run 0 Options --------- Layout 0 ASCII 0 Keyboard 0 Movement Numpad Keybinds 0 Fullscreen 1 Font 18/SmallcapsGlow Map View 76x50 Zoom Use 0% Tactical HUD 1 Map Filters NONE Filters NONE Steam 1 RUN: ca60265b-414c-4585-816a-5593e9595803